Cogmind - Beta 16 @@@ ROGUE MODE // 2025.11.18 @ 13:52:58 Player: Anting Result: Destroyed by H-88 Terminator with KE Penetrator Performance ------------- Evolutions (7) 3500 Regions Visited (25) 5000 Robots Destroyed (263) 1315 Value Destroyed (10425) 10425 Prototype IDs (110) 2200 Alien Tech Used (5) 1000 Bonus (13293) 13293 TOTAL SCORE: 36733 Bonus ------- High Alert Combat Kills 305 Follower Combat Kills 2570 Entered Garrisons 200 Network Hubs Disabled 400 Acquired ECA 300 Met Warlord at Base 500 MAIN.C Attacked Warlord 500 Warlord Defense Kills 2082 Built Enhanced Grunts 300 Met R17 at Cetus 500 Found Hidden Lab 3000 Used Core Reset Matrix 3000 Met R17 at Research 2000 Friendly Fire -2364 Cogmind --------- Core Integrity 0/1300 Matter 63/300 Energy 100/100 System Corruption 13% Temperature Cool (0) Movement Core (550) Ox10 Location -3/Protoforge Parts ------- > --- POWER (2) -------- (None) > --- PROPULSION (7) --- Concept Combat Aerolev Unit > --- UTILITY (11) ----- Concept Antigrav Storage Unit Advanced Visual Processing Unit Advanced Signal Interpreter Experimental Targeting Computer Concept Weapon Articulator > --- WEAPON (3) ------- (None) > --- INVENTORY (25) --- Experimental Antigrav System Experimental Antigrav System Concept Combat Aerolev Unit Faulty Concept Combat Aerolev Unit Concept Gyrokinetic System Concept Weapon Articulator Mini Quantum Capacitor Subatomic Replicator Peak State ------------ > --- POWER ------------ Micro Fission Core Mini Fusion Reactor > --- PROPULSION ------- Gravjet Array Gravjet Array Concept Combat Aerolev Unit Concept Combat Aerolev Unit Concept Gyrokinetic System > --- UTILITY ---------- Concept Antigrav Storage Unit Advanced Visual Processing Unit Advanced Sensor Array Advanced Signal Interpreter Experimental Targeting Computer Concept Weapon Articulator Advanced Transmission Jammer Experimental Cloaking Device Improved Hacking Suite Crosscalibrator > --- WEAPON ----------- Tri-rail Accelerator Concept Rapid Grenade Launcher > --- INVENTORY -------- Experimental Antigrav System Experimental Antigrav System Concept Combat Aerolev Unit Concept Combat Aerolev Unit Concept Gyrokinetic System Concept Weapon Articulator Mini Quantum Capacitor Subatomic Replicator Warp Cannon Concept Rapid Grenade Launcher [Rating: 195] Favorites ----------- Power Cooled Ion Engine Engine Cooled Ion Engine Power Core Micro Fission Core Reactor Mini Fusion Reactor Propulsion Cooled VTOL Module Treads Armored Treads Leg Aluminum Leg Hover Unit Concept Combat Aerolev Unit Flight Unit Cooled VTOL Module Utility High-capacity Storage Unit Device Advanced Sensor Array Storage High-capacity Storage Unit Processor Advanced Signal Interpreter Hackware Hacking Suite Protection Hardened Light Armor Plating Weapon Autogun Energy Gun EM Shotgun Energy Cannon Advanced Beam Cannon Ballistic Gun Autogun Ballistic Cannon Tri-rail Accelerator Launcher Mini Grenade Launcher Special Weapon CPS Tube Slashing Weapon Sigix Broadsword Piercing Weapon Vortex Lance Build | -11 -10 -10 -9 -9 -9 -9 -9 -6 -6 -6 -6 -6 -6 -6 -5 -5 -5 -5 -4 -4 -4 -4 -3 -3 -3 ------- Run | Yrd Mat Min Mat Sto Gar Rec Scr Fac Was Fac Ext Cet Arc Hub Fac Upp Upp War Pro Fac Arm Lab Res Qua Frg Slots Evolved 14 | . . . 2 . . . . 6 . . . . . . 2 . . . . 2 . . 2 . . Power 1 | . . . . . . . . . . . . . . . 1 . . . . . . . . . . Propulsion 4 | . . . 1 . . . . 3 . . . . . . . . . . . . . . . . . Utility 8 | . . . 1 . . . . 3 . . . . . . 1 . . . . 2 . . 1 . . Weapon 1 | . . . . . . . . . . . . . . . . . . . . . . . 1 . . Parts Attached 149 | 6 11 12 13 9 2 . . 32 . 9 4 4 3 . 5 . . 8 . 2 3 2 6 2 16 Power 10 | 1 1 1 2 3 . . . . . . . . . . 2 . . . . . . . . . . Engine 7 | 1 1 1 2 2 . . . . . . . . . . . . . . . . . . . . . Core 1 | . . . . . . . . . . . . . . . 1 . . . . . . . . . . Reactor 2 | . . . . 1 . . . . . . . . . . 1 . . . . . . . . . . Propulsion 38 | 2 . 4 5 . 1 . . 11 . 4 1 . . . . . . 3 . . 1 . . . 6 Treads 12 | . . 2 5 . 1 . . 4 . . . . . . . . . . . . . . . . . Leg 4 | 2 . 2 . . . . . . . . . . . . . . . . . . . . . . . Wheel . | . . . . . . . . . . . . . . . . . . . . . . . . . . Hover 5 | . . . . . . . . . . . . . . . . . . . . . . . . . 5 Flight 17 | . . . . . . . . 7 . 4 1 . . . . . . 3 . . 1 . . . 1 Utility 63 | 2 4 2 3 3 . . . 14 . 5 2 4 2 . 2 . . 4 . 2 1 1 5 . 7 Device 25 | 1 . . . 1 . . . 4 . 1 2 1 2 . 1 . . 3 . 1 1 1 1 . 5 Storage 6 | 1 3 . . . . . . . . . . 1 . . . . . . . . . . . . 1 Processor 6 | . . . . . . . . 1 . . . . . . . . . 1 . . . . 3 . 1 Hackware 15 | . . . . 1 . . . 7 . 4 . . . . 1 . . . . 1 . . 1 . . Protection 11 | . 1 2 3 1 . . . 2 . . . 2 . . . . . . . . . . . . . Artifact . | . . . . . . . . . . . . . . . . . . . . . . . . . . Weapon 38 | 1 6 5 3 3 1 . . 7 . . 1 . 1 . 1 . . 1 . . 1 1 1 2 3 Energy Gun 8 | 1 6 . . . . . . . . . . . 1 . . . . . . . . . . . . Energy Cannon 4 | . . . . 2 . . . 1 . . . . . . . . . . . . . 1 . . . Ballistic Gun 11 | . . 5 2 1 1 . . 1 . . . . . . . . . . . . . . . . 1 Ballistic Cannon 1 | . . . . . . . . . . . 1 . . . . . . . . . . . . . . Launcher 6 | . . . 1 . . . . 2 . . . . . . . . . . . . . . . 1 2 Special Weapon 2 | . . . . . . . . 2 . . . . . . . . . . . . . . . . . Impact Weapon . | . . . . . . . . . . . . . . . . . . . . . . . . . . Slashing Weapon 5 | . . . . . . . . 1 . . . . . . 1 . . . . . 1 . 1 1 . Piercing Weapon 1 | . . . . . . . . . . . . . . . . . . 1 . . . . . . . Special Melee Weapon . | . . . . . . . . . . . . . . . . . . . . . . . . . . Unidentified Prototypes 31 | . . . . 5 . . . 3 . . . 4 1 . 1 . 1 6 . . . 2 5 . 3 Parts Lost 40 | . . 7 4 . 1 . . 6 . 1 . . . . . . . 1 . . . . . 2 18 Power 4 | . . 1 . . . . . . . . . . . . . . . . . . . . . . 3 Propulsion 10 | . . 2 . . . . . 2 . 1 . . . . . . . 1 . . . . . . 4 Utility 16 | . . 1 3 . 1 . . 3 . . . . . . . . . . . . . . . 2 6 Weapon 10 | . . 3 1 . . . . 1 . . . . . . . . . . . . . . . . 5 Highest Loss Streak 9 | . . 6 1 . 1 . . 2 . 1 . . . . . . . 1 . . . . . 2 9 To Critical Strikes 1 | . . . . . . . . . . . . . . . . . . . . . . . . . 1 Average Backups 14 | 3 14 17 18 20 19 18 18 16 9 8 8 9 9 10 9 9 8 9 9 9 9 6 9 8 7 Power 1 | . . 1 1 1 2 2 2 1 1 1 1 1 1 1 . 1 1 1 1 1 1 . 1 1 . Propulsion 2 | 1 2 4 5 4 3 3 3 1 . . 2 2 2 2 2 3 2 2 1 1 1 . 1 1 1 Utility 5 | . 4 4 4 7 9 9 9 9 5 3 3 4 5 6 4 3 3 4 6 6 6 3 2 2 1 Weapon 4 | 1 6 8 7 5 4 4 4 3 2 1 1 1 1 1 1 2 2 1 1 1 1 1 2 2 2 Tool/Special . | . . . . . . . . . . . . . . . . . . . . . . . . . . Unused Backups 38 | . 4 . 5 7 . . . 4 . . . 1 . . 1 . . . . . 4 1 1 1 9 Power 1 | . . . . 1 . . . . . . . . . . . . . . . . . . . . . Propulsion 15 | . 1 . 3 2 . . . . . . . . . . . . . . . . 3 . . 1 5 Utility 12 | . 1 . 2 . . . . 2 . . . 1 . . 1 . . . . . . 1 1 . 3 Weapon 9 | . 2 . . 4 . . . 2 . . . . . . . . . . . . 1 . . . . Tool/Special 1 | . . . . . . . . . . . . . . . . . . . . . . . . . 1 Average Slot Usage (%) 93 | . 99 98 97 99 99 100 100 88 93 91 85 86 86 86 86 88 88 89 94 92 92 88 87 89 81 Engine 6 | . 14 13 11 10 11 11 11 4 . . . . . . . . . . . . . . . . . Reactor 2 | . . . . . . . . 1 6 6 6 6 6 6 5 5 5 5 5 9 10 9 8 8 5 Treads 14 | . . 12 33 33 32 33 33 25 . . . . . . . . . . . . . . . . . Leg 4 | . 28 15 . . . . . . . . . . . . . . . . . . . . . . . Flight 12 | . . . . . . . . 11 40 38 33 33 33 33 29 29 31 34 38 35 32 29 26 26 22 Device 9 | . 13 6 8 . . . . 4 6 5 6 8 17 20 19 22 22 19 16 20 19 19 16 16 20 Storage 8 | . 14 14 11 11 11 11 11 6 6 6 6 6 6 6 5 5 5 5 5 5 5 4 4 4 4 Processor 3 | . . . . . . . . 1 6 6 6 6 6 6 5 5 5 7 11 10 10 9 7 13 13 Hackware 7 | . . . . 9 11 11 11 12 20 20 20 14 6 6 8 5 5 5 5 7 10 9 11 12 6 Protection 5 | . . 7 10 12 11 11 11 7 . . . 2 2 . . . . . . . . . 4 . . Energy Gun 3 | . 27 6 . . . . . . . . . . 3 . . . . . . . . . . . . Energy Cannon 1 | . . . . 5 10 8 . . . . . . . . . . . . . . . . . . . Ballistic Gun 8 | . . 21 21 16 11 13 22 9 . . . . . . . . . . . . . . . . . Ballistic Cannon 1 | . . . . . . . . . . . 4 2 2 6 3 5 5 4 4 3 4 1 4 . . Peak Build Rating 195 | 6 11 11 23 33 28 28 28 65 64 73 79 92 96 88 101 100 104 114 114 131 135 137 162 174 195 Average Rating 55 | 3 10 9 17 26 27 27 27 43 64 68 77 81 85 88 95 100 102 108 113 122 127 118 152 165 154 On Entrance 74 | . 6 11 10 22 28 28 27 28 64 64 73 74 92 88 88 100 100 104 113 114 130 126 137 156 150 Avg Prop Armor Cover (%) 1 | . . . . . 8 . . 7 . . . 2 2 2 . . . 1 1 1 1 . . . 6 Naked Turns . | . . . . . . . . . . . . . . . . . . . . . . . . . . Heaviest Build 77 | 12 52 53 60 64 60 60 59 70 24 24 37 41 41 38 48 45 45 45 41 52 48 55 59 55 77 Greatest Support 128 | 20 20 40 60 60 60 60 60 128 33 35 35 50 50 44 50 56 50 55 50 65 65 58 66 66 108 Greatest Overweight (x) 11 | 1 2 2 . 1 1 . . . . . 1 . 1 . . . . . . . . . 1 . 11 Average Overweight (x) . | . 1 1 . . . . . . . . . . . . . . . . . . . . . . . Largest Inventory Capacity 25 | 8 20 20 20 20 20 20 20 20 10 10 10 10 10 10 10 10 10 10 10 10 10 10 10 10 25 Average Capacity 15 | 7 16 20 20 20 20 20 20 17 10 10 10 10 10 10 10 10 10 10 10 10 10 10 10 10 11 Most Carried 20 | 5 20 20 20 20 20 18 20 20 10 10 10 10 10 10 10 10 9 10 10 10 10 10 10 10 15 Average Carried 14 | 4 14 17 18 19 19 18 18 16 10 9 9 9 9 10 9 9 8 9 9 9 9 6 9 9 9 Final Capacity 25 | 8 20 20 20 20 20 20 20 10 10 10 10 10 10 10 10 10 10 10 10 10 10 10 10 10 25 Final Carried 20 | 5 20 20 20 20 18 18 20 10 10 10 10 10 10 10 10 9 8 9 10 10 10 10 10 9 8 Class Distribution -------------------- 43% | Mutant 9% | Hacker-Sprinter 9% | Scavenger-Mutant 8% | Commander-Mutant 8% | Machinist-Sprinter 6% | Commander-Sprinter 5% | Scavenger-Sprinter Dominant Class ---------------- Mutant | -10/Materials Mutant | -10/Mines Mutant | -9/Materials Mutant | -9/Storage Mutant | -9/Garrison Mutant | -9/Recycling Commander-Mutant | -9/Scraptown Scavenger-Mutant | -6/Factory Hacker-Sprinter | -6/Waste Hacker-Sprinter | -6/Factory Hacker-Sprinter | -6/Extension Commander-Sprinter | -6/Cetus Commander-Sprinter | -6/Archives Commander-Sprinter | -6/Hub_04(d) Hacker-Sprinter | -5/Factory Machinist-Sprinter | -5/Upper Caves Machinist-Sprinter | -5/Upper Caves Machinist-Sprinter | -5/Warlord Scavenger-Sprinter | -4/Proximity Caves Scavenger-Sprinter | -4/Factory Scavenger-Sprinter | -4/Armory Scavenger-Sprinter | -4/Lab Hacker-Sprinter | -3/Research Hacker-Ninja | -3/Quarantine Scavenger-Ninja | -3/Protoforge Resources | -11 -10 -10 -9 -9 -9 -9 -9 -6 -6 -6 -6 -6 -6 -6 -5 -5 -5 -5 -4 -4 -4 -4 -3 -3 -3 ----------- Run | Yrd Mat Min Mat Sto Gar Rec Scr Fac Was Fac Ext Cet Arc Hub Fac Upp Upp War Pro Fac Arm Lab Res Qua Frg Matter Collected 7120 | 239 197 373 922 530 167 134 . 991 20 8 555 150 132 52 154 76 48 580 66 25 491 . 434 90 686 Remotely . | . . . . . . . . . . . . . . . . . . . . . . . . . . Salvage Created 9075 | 61 813 505 1403 1070 566 394 . 871 . 27 418 17 139 460 173 100 . 671 56 . 183 . 268 131 749 Parts 551 | 4 48 29 116 68 29 16 . 47 . 3 22 13 5 43 3 4 . 25 5 . 9 . 19 10 33 Haulers Intercepted 14 | . 2 . 3 6 . . . 1 . . . . . 1 . . . . . . . . 1 . . Recyclers Shooed 16 | 1 . . 7 . . 2 . 4 . . 1 . . . . . . . . . . . . 1 . Parts Field Recycled . | . . . . . . . . . . . . . . . . . . . . . . . . . . Retrieved Matter . | . . . . . . . . . . . . . . . . . . . . . . . . . . Parts Self-Destructed 22 | . . . . . . . . . . . . . . . . 8 . . 14 . . . . . . Prevented 1 | . . . . . . . . . . . . . . . . 1 . . . . . . . . . Parts Restored 3 | . . . . . . . . . . . . . . . . . . . . . . . . . 3 Faulty 3 | . . . . . . . . . . . . . . . . . . . . . . . . . 3 Kills | -11 -10 -10 -9 -9 -9 -9 -9 -6 -6 -6 -6 -6 -6 -6 -5 -5 -5 -5 -4 -4 -4 -4 -3 -3 -3 ------- Run | Yrd Mat Min Mat Sto Gar Rec Scr Fac Was Fac Ext Cet Arc Hub Fac Upp Upp War Pro Fac Arm Lab Res Qua Frg Combat Hostiles Destroyed 173 | . 16 13 30 9 15 6 . 15 . 3 9 . 2 2 . 3 . 16 4 . 5 . . . 25 Melee 5 | . . . . . . . . . . . . . . . . . . . . . . . . . 5 Guns 82 | . 14 11 27 8 7 6 . 9 . . . . . . . . . . . . . . . . . Cannons 54 | . . . . 1 7 . . . . . 9 . 2 2 . 3 . 16 1 . 5 . . . 8 AOE 23 | . 1 1 3 . . . . 6 . 3 . . . . . . . . 3 . . . . . 6 Classes Destroyed 24 | 1 7 2 3 . . . . 2 . 1 1 . . . . . . 3 . . 1 . . . 3 Worker 19 | . 2 1 . . . . . 3 . . . . . 7 . . . . . . . . 6 . . Builder 11 | . 1 . 2 1 . 1 . . . . 1 . . 3 . . . . . . . . 1 1 . Tunneler 4 | 3 . . . . . . . . . . . . . 1 . . . . . . . . . . . Hauler 14 | . 2 . 3 6 . . . 1 . . . . . 1 . . . . . . . . 1 . . Recycler 6 | . . . 1 2 . 1 . 1 . . . . . . 1 . . . . . . . . . . Mechanic 1 | . . . 1 . . . . . . . . . . . . . . . . . . . . . . Operator 13 | . 1 . 4 2 . . . 1 . . 1 . 2 1 . . . . . . . . . 1 . Drone 7 | . . . . . . . . . . . . . . . . . . . . . . . . . 7 Watcher 19 | . 3 . 2 2 . . . 1 . . . . . 2 2 . . . . . 3 . 1 2 1 Swarmer 40 | . 6 3 11 . 3 2 . 9 . . . . . . . 1 . . 4 . 1 . . . . Cutter 4 | . . . . . . . . . . 3 . . . . . . . . . . 1 . . . . Grunt 59 | . 10 7 12 4 11 1 . 3 . . 3 . . 1 . . . 6 . . 1 . . . . Brawler 5 | . . . 1 1 . . . . . . . . . . . . . 3 . . . . . . . Duelist 2 | . . . . . . . . . . . . . . . . . . . . . 2 . . . . Protector 3 | . . . . . . . . . . . . . . . . . . 3 . . . . . . . Researcher 1 | . . . . . . . . . . . . . . . . . . . . . . . . . 1 Sentry 30 | . . 2 6 4 1 3 . 2 . . 4 . 2 1 . 1 . . . . . . . . 4 Hunter 2 | . . . . . . . . 1 . . . . . . . 1 . . . . . . . . . Programmer 5 | . . . . . . . . 1 . . . . . . . . . 1 . . . . . . 3 Behemoth 2 | . . . . . . . . . . . 1 . . . . . . 1 . . . . . . . Decapitator 4 | . . . . . . . . . . . . . . . . . . . . . . . . . 4 Immortal 2 | . . . . . . . . . . . . . . . . . . . . . . . . . 2 Striker 1 | . . . . . . . . . . . . . . . . . . 1 . . . . . . . Executioner 1 | . . . . . . . . . . . . . . . . . . 1 . . . . . . . V-Series 5 | . . . . . . . . . . . . . . . . . . . . . . . . . 5 Assembled 1 | . . 1 . . . . . . . . . . . . . . . . . . . . . . . Thug 2 | . . . . . . . . . . . 1 . . . . . . 1 . . . . . . . Best Kill Streak 12 | 3 3 3 7 7 6 4 . 4 . 3 2 . 2 12 2 2 . 4 4 . 3 . 6 1 4 Combat Bots Only 7 | . 3 3 7 5 6 4 . 3 . 3 2 . 2 2 . 2 . 4 4 . 3 . . . 4 Max Kills in Single Turn 12 | 1 3 2 3 2 1 1 . 2 . 2 2 1 1 12 1 1 . 1 2 . 1 . 1 1 2 Gunslinging 1 | . 1 . 1 . . . . . . . . . . . . . . . . . . . . . . Exploded 3 | . 1 1 3 . . . . 2 . 2 . . . . . . . . 2 . . . . . 2 Melee 1 | . . . . . . . . . . . . . . . . . . . . . . . . . 1 Uniques/NPCs Destroyed 2 | . . . . 1 . . . . . . . 1 . . . . . . . . . . . . . 01-MTF (-9/Storage) A7 (-6/Cetus) Combat | -11 -10 -10 -9 -9 -9 -9 -9 -6 -6 -6 -6 -6 -6 -6 -5 -5 -5 -5 -4 -4 -4 -4 -3 -3 -3 -------- Run | Yrd Mat Min Mat Sto Gar Rec Scr Fac Was Fac Ext Cet Arc Hub Fac Upp Upp War Pro Fac Arm Lab Res Qua Frg Hostile Shots Fired 958 | . 44 93 114 49 55 31 . 153 . 25 49 . . 1 2 9 . 24 4 24 38 . 8 20 215 Missed 355 | . 13 17 28 27 15 7 . 59 . 16 22 . . . 2 4 . 13 3 20 23 . 5 5 76 Hits 603 | . 31 76 86 22 40 24 . 94 . 9 27 . . 1 . 5 . 11 1 4 15 . 3 15 139 Melee 12 | . . 1 6 . . . . . . 1 . . . . . . . . . . 2 . . . 2 Projectile 591 | . 31 75 80 22 40 24 . 94 . 8 27 . . 1 . 5 . 11 1 4 13 . 3 15 137 AOE 5 | . . . . . . . . . . 2 . . . . . . . 3 . . . . . . . Critical Strikes 26 | . . 1 3 1 . 2 . 5 . . . . . . . . . . 1 . 2 . . 5 6 Part Disruptions 2 | . . . . . . . . . . . . . . . . . . . . . . . . . 2 Damage Taken 10909 | . 380 997 1073 317 404 289 . 1330 . 171 157 . 24 112 . 78 . 368 20 103 288 . 281 360 4157 Core 1982 | . 34 179 65 42 31 88 . 149 . 33 30 . . . . 13 . 30 20 . 23 . 119 23 1103 Absorbed by Shields 94 | . . . . . . . . . . . 49 . . . . . . . . 7 . . . . 38 Regen/Repaired (Parts) 1391 | . 69 . . . . . . 35 . . . . . . 184 . . 70 . 194 17 . . 429 393 Core Remaining (%) 70 | 100 . 14 . . . . 43 . . . . . . 75 . . . . 93 . . 98 . . . Volleys Fired 772 | 21 44 52 116 54 67 17 . 80 . 3 32 . 43 14 4 6 1 60 13 . 63 . 8 2 72 Largest 2 | 1 2 2 2 2 2 2 . 2 . 1 1 . 1 1 1 1 1 1 1 . 1 . 1 1 2 Hottest 120 | 50 90 90 46 91 91 91 . 90 . 30 60 . 81 60 60 60 60 60 60 . 60 . 60 60 120 Shots Fired 1146 | 21 87 105 230 101 100 34 . 146 . 3 32 . 43 14 4 6 1 60 13 . 63 . 8 2 73 Gun 761 | 21 87 105 229 87 33 30 . 134 . . . . 34 . . . . . . . . . . . 1 Cannon 360 | . . . . 14 67 4 . 3 . . 31 . 9 14 4 6 1 60 11 . 63 . 8 2 63 Launcher 21 | . . . 1 . . . . 6 . 3 . . . . . . . . 2 . . . . . 9 Special 4 | . . . . . . . . 3 . . 1 . . . . . . . . . . . . . . Kinetic 842 | . . 83 229 87 33 30 . 134 . . 31 . 9 14 4 6 1 60 11 . 63 . 8 2 37 Thermal 170 | 21 . . . 14 67 4 . 3 . . . . 34 . . . . . . . . . . . 27 Explosive 21 | . . . 1 . . . . 6 . 3 . . . . . . . . 2 . . . . . 9 Electromagnetic 109 | . 87 22 . . . . . . . . . . . . . . . . . . . . . . . Robot Hit Streak 40 | 9 8 11 15 14 8 12 . 10 . . 14 . 5 6 3 4 . 13 7 . 16 . 31 . 40 Robot Miss Streak 5 | 3 5 3 4 2 2 4 . 4 . 1 3 . 3 1 4 4 . 4 1 . 3 . . . 1 Penetration Max . | . . . . . . . . . . . . . . . . . . . . . . . . . . Secondary Targets 10 | . 2 3 3 1 . . . 1 . . . . . . . . . . . . . . . . . Max Gunslinging Chain 1 | . 1 1 1 1 . . . 1 . . . . . . . . . . . . . . . . . Shots Hit Robots 757 | 17 63 79 145 58 44 23 . 97 . . 24 2 26 4 4 5 . 50 5 . 41 . 14 5 51 Core Hits 474 | 4 39 27 63 28 16 11 . 46 . 6 22 1 17 25 3 5 . 45 5 . 36 . 11 3 61 Critical Kills 8 | . . 2 . . 1 . . . . . . . . . . . . . . . . . . . 5 Critical Parts Destroyed 1 | . . 1 . . . . . . . . . . . . . . . . . . . . . . . Critical Strikes 24 | 3 . 3 . . 1 . . . . . 1 . 1 . . 1 . 6 . . 1 . . . 7 Burn 4 | 3 . . . . . . . . . . . . 1 . . . . . . . . . . . . Meltdown 6 | . . . . . 1 . . . . . . . . . . . . . . . . . . . 5 Destroy 3 | . . 3 . . . . . . . . . . . . . . . . . . . . . . . Blast 11 | . . . . . . . . . . . 1 . . . . 1 . 6 . . 1 . . . 2 Melee Attacks 124 | . . . . . . . . 5 . 10 30 2 . . 1 . . 1 . . 2 5 24 22 22 Impact . | . . . . . . . . . . . . . . . . . . . . . . . . . . Slashing 123 | . . . . . . . . 5 . 10 30 2 . . 1 . . . . . 2 5 24 22 22 Piercing . | . . . . . . . . . . . . . . . . . . . . . . . . . . Entropic 1 | . . . . . . . . . . . . . . . . . . 1 . . . . . . . Sneak Attacks 20 | . . . . . . . . 1 . . . 2 . . 1 . . . . . . . 7 4 5 Combat Hostiles . | . . . . . . . . . . . . . . . . . . . . . . . . . . Follow-up Attacks . | . . . . . . . . . . . . . . . . . . . . . . . . . . Damage Inflicted 29035 | 215 1132 1140 2386 1046 819 535 . 2092 . 125 1866 164 942 1746 208 303 . 3372 288 . 2586 . 1416 697 5957 Guns 7906 | 213 924 1079 2208 922 371 378 . 1309 . . . . 502 . . . . . . . . . . . . Cannons 13313 | . . . . 102 448 83 . 33 . . 1866 . 440 264 124 303 . 3372 100 . 2586 . 336 . 3256 Explosions 4405 | . 193 41 155 . . . . 567 . 125 . . . 1482 . . . . 188 . . . . . 1654 Melee 3255 | . . . . . . . . 183 . . . 164 . . 84 . . . . . . . 1080 697 1047 Ramming 156 | 2 15 20 23 22 . 74 . . . . . . . . . . . . . . . . . . . Kinetic 17773 | . . 810 2208 922 371 378 . 1309 . . 1866 . 440 264 124 303 . 3372 100 . 2586 . 336 . 2384 Thermal 2487 | 213 193 41 . 102 448 83 . 33 . . . . 502 . . . . . . . . . . . 872 Explosive 2689 | . . . 155 . . . . 567 . 125 . . . . . . . . 188 . . . . . 1654 Electromagnetic 2675 | . 924 269 . . . . . . . . . . . 1482 . . . . . . . . . . . Impact . | . . . . . . . . . . . . . . . . . . . . . . . . . . Slashing 3255 | . . . . . . . . 183 . . . 164 . . 84 . . . . . . . 1080 697 1047 Piercing . | . . . . . . . . . . . . . . . . . . . . . . . . . . Highest Corruption 13 | . 3 3 1 1 1 1 . . . . . . . 1 . . . . . . . . 1 . 13 Average Corruption 1 | . 2 3 1 1 1 1 . . . . . . . 1 . . . . . . . . 1 . 4 Corruption Purged . | . . . . . . . . . . . . . . . . . . . . . . . . . . Corruption Blocked . | . . . . . . . . . . . . . . . . . . . . . . . . . . Effects 101 | . 25 29 6 14 8 7 . . . . . . . . . . . . . . . . . . 12 Message Errors 25 | . 8 5 2 6 1 1 . . . . . . . . . . . . . . . . . . 2 Matter Fused 22 | . 7 5 1 4 . 1 . . . . . . . . . . . . . . . . . . 4 Heat Flow Errors 11 | . . 4 . 3 2 1 . . . . . . . . . . . . . . . . . . 1 Energy Discharges 14 | . 2 5 2 . 3 2 . . . . . . . . . . . . . . . . . . . Parts Rejected 1 | . . . . . 1 . . . . . . . . . . . . . . . . . . . . Data Loss (minor) 11 | . 4 2 . 1 . 1 . . . . . . . . . . . . . . . . . . 3 Data Loss (major) 5 | . 1 2 . . . 1 . . . . . . . . . . . . . . . . . . 1 Misfires 6 | . . 5 . . 1 . . . . . . . . . . . . . . . . . . . . Alerts 3 | . 2 1 . . . . . . . . . . . . . . . . . . . . . . . Weapon Failures 3 | . 1 . 1 . . . . . . . . . . . . . . . . . . . . . 1 Overload Shots . | . . . . . . . . . . . . . . . . . . . . . . . . . . Overflow Damage 814 | . . . . . . . . 41 . . 39 . . 8 . . . 21 9 . 139 . 78 193 286 Projectiles 247 | . . . . . . . . . . . 39 . . . . . . 21 9 . 139 . . . 39 Explosions 73 | . . . . . . . . 13 . . . . . 8 . . . . . . . . . . 52 Melee 494 | . . . . . . . . 28 . . . . . . . . . . . . . . 78 193 195 Knockbacks 79 | . . . . . . . . . . . 11 . 1 . . . . 11 . . 35 . . . 21 Impact . | . . . . . . . . . . . . . . . . . . . . . . . . . . Kinetic 75 | . . . . . . . . . . . 10 . 1 . . . . 11 . . 32 . . . 21 Secondary 4 | . . . . . . . . . . . 1 . . . . . . . . . 3 . . . . Self-Inflicted Damage 302 | . 12 . . . . . . . . . . . . 93 . . . . . . . . . . 197 Shots 10 | . 1 . . . . . . . . . . . . 1 . . . . . . . . . . 8 Rammed 12 | . . 2 3 2 . 5 . . . . . . . . . . . . . . . . . . . Targets Rammed 20 | 1 2 6 3 2 . 6 . . . . . . . . . . . . . . . . . . . Kicked 7 | 1 2 4 . . . . . . . . . . . . . . . . . . . . . . . Crushed 1 | . . . . . . 1 . . . . . . . . . . . . . . . . . . . Highest Temperature 428 | 210 243 263 15 231 428 171 . 291 282 205 110 2 220 54 90 117 85 282 282 121 156 . 45 316 123 Average Temperature 71 | 112 63 76 5 51 108 87 . 96 110 82 49 2 77 20 30 39 36 74 94 46 37 . 6 172 43 Received Heat Transfer 1664 | . 159 387 297 102 159 90 . 159 . 18 29 . . 9 . 9 . 27 . 18 30 . 9 9 153 Effects 14 | . . . . 2 4 . . 1 3 1 . . . . . . . 2 . . . . . 1 . Energy Bleed 6 | . . . . . 2 . . 1 . . . . . . . . . 2 . . . . . 1 . Interference 7 | . . . . 2 1 . . . 3 1 . . . . . . . . . . . . . . . Short Circuit 1 | . . . . . 1 . . . . . . . . . . . . . . . . . . . . Siege Activations . | . . . . . . . . . . . . . . . . . . . . . . . . . . Martial Activations . | . . . . . . . . . . . . . . . . . . . . . . . . . . Shielding Activations . | . . . . . . . . . . . . . . . . . . . . . . . . . . Robots Disrupted . | . . . . . . . . . . . . . . . . . . . . . . . . . . Combat Hostiles . | . . . . . . . . . . . . . . . . . . . . . . . . . . Robots Corrupted 3 | . 2 1 . . . . . . . . . . . . . . . . . . . . . . . Combat Hostiles 2 | . 1 1 . . . . . . . . . . . . . . . . . . . . . . . Parts Fried 9 | . 3 1 . . . . . . . . . . . 5 . . . . . . . . . . . Impact Corruptions . | . . . . . . . . . . . . . . . . . . . . . . . . . . Robots Melted 6 | . . . . . 1 . . . . . . . . . . . . . . . . . . . 5 Combat Hostiles 6 | . . . . . 1 . . . . . . . . . . . . . . . . . . . 5 Parts Melted 24 | 3 . . . . 3 . . 1 . . . . . . . . . 2 . . . . . . 15 Heat Transferred 3763 | 851 200 . . 185 740 148 . 50 . . . . 851 . . . . . . . . . . . 738 Parts Sabotaged . | . . . . . . . . . . . . . . . . . . . . . . . . . . Parts Stolen . | . . . . . . . . . . . . . . . . . . . . . . . . . . Parts Stripped . | . . . . . . . . . . . . . . . . . . . . . . . . . . Power Chain Reactions 6 | . 4 1 . . . . . . . . . . . 1 . . . . . . . . . . . Alert | -11 -10 -10 -9 -9 -9 -9 -9 -6 -6 -6 -6 -6 -6 -6 -5 -5 -5 -5 -4 -4 -4 -4 -3 -3 -3 ------- Run | Yrd Mat Min Mat Sto Gar Rec Scr Fac Was Fac Ext Cet Arc Hub Fac Upp Upp War Pro Fac Arm Lab Res Qua Frg Maximum Alert Level 3 | . . . 2 1 3 2 . 1 . . 3 2 1 3 2 . . . . . 3 . . 1 1 Low Security (%) 63 | 100 100 100 44 56 22 3 . 78 100 100 58 . 63 65 . . . . . 100 31 . 100 86 63 Level 1 24 | . . . 41 43 12 85 . 21 . . 11 50 36 21 63 . . . . . 1 . . 13 36 Level 2 8 | . . . 14 . 40 11 . . . . 6 49 . 9 36 . . . . . 19 . . . . Level 3 4 | . . . . . 24 . . . . . 24 . . 3 . . . . . . 48 . . . . Level 4 . | . . . . . . . . . . . . . . . . . . . . . . . . . . Level 5 . | . . . . . . . . . . . . . . . . . . . . . . . . . . High Security . | . . . . . . . . . . . . . . . . . . . . . . . . . . Max Security . | . . . . . . . . . . . . . . . . . . . . . . . . . . Peak Influence 1082 | 15 111 70 472 289 945 434 . 361 126 189 795 457 255 1082 547 . . . . 98 827 . 34 261 331 Initial 529 | . . 28 19 191 46 424 . . 126 60 86 424 117 39 529 . . . . 81 47 . . 2 146 Average 183 | 2 35 12 225 190 489 297 . 99 107 151 281 388 181 184 430 . . . . 76 486 . 10 77 157 Influence Increases 11401 | 15 552 296 989 427 929 266 . 805 . 326 1067 344 228 1333 119 70 . 414 230 77 1455 . 161 466 832 Destroy 0b10 Robot/C 4540 | . 320 240 600 180 400 120 . 360 . 60 500 160 80 240 . 60 . 260 180 . 400 . . . 380 Destroy 0b10 Robot/NC 510 | 15 45 5 65 65 . 15 . 35 . . 15 10 10 75 15 . . 15 . . 20 . 45 20 40 Destroy Leader 710 | . 80 30 170 86 10 . . 104 . 10 42 . . 66 4 10 . . 20 . 58 . 4 4 12 Allied During Kill 1390 | . . . . . 13 . . 4 . . 371 170 90 310 . . . 64 30 . 338 . . . . Successful Hack 680 | . 33 . 22 34 20 11 . 93 . 55 8 . . 8 34 . . . . 32 114 . 24 69 123 Select Force Hacks 150 | . . . 30 . . 120 . . . . . . . . . . . . . . . . . . . Disable Machine 645 | . . . . 30 15 . . 15 . . . . 45 285 . . . . . . 90 . 15 45 105 Anti-Garrison Action 400 | . . . . . 400 . . . . . . . . . . . . . . . . . . . . Destroy Structure 576 | . 14 6 12 2 71 . . 44 . 21 56 4 3 229 6 . . . . . 30 . 28 28 22 Partial Spotted 420 | . . . . . . . . 45 . 45 45 . . 30 45 . . . . . 45 . 30 30 105 Lose Combat Pursuer 1380 | . 60 15 90 30 . . . 105 . 135 30 . . 90 15 . . 75 . 45 360 . 15 270 45 Influence Decreases 11182 | 15 478 320 585 809 56 949 262 444 275 234 487 808 407 366 793 312 92 366 222 109 734 819 157 209 874 Entered New Map 4058 | . . 46 31 263 26 521 262 . 235 26 92 334 177 76 553 152 32 74 122 49 51 819 . 2 115 Time Decay 5244 | 15 478 220 514 546 . 428 . 334 40 198 225 254 170 110 90 160 60 262 50 60 272 . 152 187 419 Lost Part 364 | . . 54 40 . 10 . . 40 . 10 . . . . . . . 10 . . . . . 20 180 Lost Ally 845 | . . . . . 20 . . 70 . . 20 220 60 180 . . . 20 50 . 190 . 5 . 10 Purge Threat 671 | . . . . . . . . . . . 150 . . . 150 . . . . . 221 . . . 150 Squads Dispatched 44 | . 2 . 5 6 . . . 7 . 5 1 . . 7 1 . . . . . 2 . 4 2 2 Investigation 14 | . 1 . 2 1 . . . 3 . 1 . . . 3 . . . . . . 1 . 2 . . Extermination 9 | . . . . . . . . 3 . 2 . . . . 1 . . . . . . . . 1 2 Reinforcement 17 | . 1 . 3 2 . . . 1 . 2 1 . . 3 . . . . . . 1 . 2 1 . Assault . | . . . . . . . . . . . . . . . . . . . . . . . . . . Garrison 4 | . . . . 3 . . . . . . . . . 1 . . . . . . . . . . . Intercept . | . . . . . . . . . . . . . . . . . . . . . . . . . . Searches Triggered . | . . . . . . . . . . . . . . . . . . . . . . . . . . Unchained Authorized 1 | . . . . . . . . . . . . . . . . . . . . . . . . 1 . Construction Impeded 1 | . . . . . . . . . . . . . . 1 . . . . . . . . . . . Haulers Reinforced 2 | . . . . . . . . 1 . . . . . . . . . . . . . . 1 . . Active Scanning Responses . | . . . . . . . . . . . . . . . . . . . . . . . . . . Cargo Convoy Interrupts . | . . . . . . . . . . . . . . . . . . . . . . . . . . Stealth | -11 -10 -10 -9 -9 -9 -9 -9 -6 -6 -6 -6 -6 -6 -6 -5 -5 -5 -5 -4 -4 -4 -4 -3 -3 -3 --------- Run | Yrd Mat Min Mat Sto Gar Rec Scr Fac Was Fac Ext Cet Arc Hub Fac Upp Upp War Pro Fac Arm Lab Res Qua Frg Distress Signals 37 | . 1 1 7 2 . . . 3 . . 3 2 . 2 2 . . 2 1 1 5 . 3 1 1 Communications Jammed 9 | . . . . . . . . . . . . . . . . . . . . . . . . . 9 Distress Signals 9 | . . . . . . . . . . . . . . . . . . . . . . . . . 9 Times Spotted 452 | . 23 15 50 30 19 4 . 32 . 11 22 8 22 5 9 4 . 58 5 15 58 . 7 20 35 Peak Tracking Total 19 | . 3 4 6 3 4 2 . 5 . 7 5 5 1 7 6 2 . 11 3 16 19 . 6 6 6 Tactical Retreats 48 | . 3 1 4 2 . . . 6 . 6 1 . . 2 1 1 . 2 . 2 9 . 1 6 1 Traps | -11 -10 -10 -9 -9 -9 -9 -9 -6 -6 -6 -6 -6 -6 -6 -5 -5 -5 -5 -4 -4 -4 -4 -3 -3 -3 ------- Run | Yrd Mat Min Mat Sto Gar Rec Scr Fac Was Fac Ext Cet Arc Hub Fac Upp Upp War Pro Fac Arm Lab Res Qua Frg Traps Triggered 21 | . 4 . 1 . . . . 1 . 1 1 . . 1 . . . . . 2 1 . 1 1 7 Indirectly 1 | . . . . . . . . . . . . . . 1 . . . . . . . . . . . Trap Hack Attempts . | . . . . . . . . . . . . . . . . . . . . . . . . . . Triggered . | . . . . . . . . . . . . . . . . . . . . . . . . . . Disarmed 4 | . . . . . . . . . . . 4 . . . . . . . . . . . . . . Reprogrammed . | . . . . . . . . . . . . . . . . . . . . . . . . . . Reused . | . . . . . . . . . . . . . . . . . . . . . . . . . . Traps Extracted . | . . . . . . . . . . . . . . . . . . . . . . . . . . Installed . | . . . . . . . . . . . . . . . . . . . . . . . . . . Triggered . | . . . . . . . . . . . . . . . . . . . . . . . . . . Machines | -11 -10 -10 -9 -9 -9 -9 -9 -6 -6 -6 -6 -6 -6 -6 -5 -5 -5 -5 -4 -4 -4 -4 -3 -3 -3 ---------- Run | Yrd Mat Min Mat Sto Gar Rec Scr Fac Was Fac Ext Cet Arc Hub Fac Upp Upp War Pro Fac Arm Lab Res Qua Frg Machines Disabled 58 | . . . . 2 9 . . 1 . . 2 . 3 19 . . . 2 . . 6 1 1 3 9 Max in Single Turn 14 | . . . . 1 2 . . 1 . . 1 . 1 14 . . . 1 . . 1 1 1 1 1 Garrison Access 3 | . . . . . . . . . . . . . . 1 . . . . . . . . . 1 1 Garrison Relay 6 | . . . . . 6 . . . . . . . . . . . . . . . . . . . . Phase Generator 1 | . . . . . 1 . . . . . . . . . . . . . . . . . . . . Network Hub 2 | . . . . . . . . . . . . . . 2 . . . . . . . . . . . Machines Repaired . | . . . . . . . . . . . . . . . . . . . . . . . . . . Machines Dismantled . | . . . . . . . . . . . . . . . . . . . . . . . . . . Machines Sabotaged . | . . . . . . . . . . . . . . . . . . . . . . . . . . Overloaded Fab Kills . | . . . . . . . . . . . . . . . . . . . . . . . . . . Hacking | -11 -10 -10 -9 -9 -9 -9 -9 -6 -6 -6 -6 -6 -6 -6 -5 -5 -5 -5 -4 -4 -4 -4 -3 -3 -3 --------- Run | Yrd Mat Min Mat Sto Gar Rec Scr Fac Was Fac Ext Cet Arc Hub Fac Upp Upp War Pro Fac Arm Lab Res Qua Frg Machines Accessed 117 | . 6 . 9 10 4 10 . 13 . 11 13 . . 4 5 1 . 1 . 2 11 . 3 5 9 Terminals 81 | . 5 . 5 9 4 6 . 7 . 5 13 . . 3 3 . . . . 1 8 . 1 3 8 Fabricators 10 | . . . . . . . . 3 . 4 . . . . . . . . . . 2 . 1 . . Repair Stations 7 | . 1 . 1 . . . . 1 . . . . . . 1 . . . . 1 1 . . 1 . Recycling Units 8 | . . . 1 . . 4 . . . 1 . . . . 1 . . . . . . . 1 . . Scanalyzers 4 | . . . 2 . . . . 2 . . . . . . . . . . . . . . . . . Garrison Access 5 | . . . . 1 . . . . . 1 . . . 1 . . . . . . . . . 1 1 Total Hacks 406 | . 29 . 24 25 6 22 . 46 . 35 28 . . 9 20 1 . 1 . 14 78 . 13 16 39 Successful 218 | . 18 . 14 14 3 16 . 33 . 21 17 . . 4 10 1 . 1 . 3 30 . 6 8 19 Failed 187 | . 11 . 10 11 3 6 . 12 . 14 11 . . 5 10 . . . . 11 48 . 7 8 20 Catastrophic 37 | . 1 . . 1 2 1 . 1 . 3 . . . . 2 . . . . 3 14 . 1 2 6 Database Lockouts 1 | . . . . . . . . 1 . . . . . . . . . . . . . . . . . Manual 207 | . 21 . 15 7 . 17 . 19 . 19 8 1 . 6 8 . . . . 4 46 . 6 11 19 Terminals 292 | . 24 . 17 24 6 18 . 19 . 13 28 . . 7 14 . . . . 4 67 . 6 12 33 Fabricators 42 | . . . . . . . . 14 . 15 . . . . . . . . . . 10 . 3 . . Repair Stations 28 | . 5 . 2 . . . . 3 . . . . . . 4 . . . . 10 1 . . 3 . Recycling Units 16 | . . . 1 . . 4 . . . 5 . . . . 2 . . . . . . . 4 . . Scanalyzers 14 | . . . 4 . . . . 10 . . . . . . . . . . . . . . . . . Garrison Access 12 | . . . . 1 . . . . . 2 . . . 2 . . . . . . . . . 1 6 Terminal Hacks 93 | . 7 . 3 7 3 5 . 7 . 6 15 . . 1 3 1 . 1 . . 20 . . 3 11 Record 5 | . . . . . . . . . . . . . . . . . . . . . . . . . 5 Part Schematic 10 | . 1 . . . . 2 . 2 . 3 1 . . . . . . . . . 1 . . . . Robot Schematic 1 | . 1 . . . . . . . . . . . . . . . . . . . . . . . . Robot Analysis 2 | . 2 . . . . . . . . . . . . . . . . . . . . . . . . Prototype ID Bank 14 | . 2 . 1 2 . 1 . 1 . . 2 . . . . . . . . . 3 . . . 2 Open Door 15 | . . . . 4 1 . . . . 1 7 . . . . 1 . 1 . . . . . . . Branch Access Points 4 | . . . 1 . . . . 1 . 1 . . . . 1 . . . . . . . . . . Emergency Access Points 1 | . . . . . . . . . . . . . . 1 . . . . . . . . . . . Terminal Index 6 | . . . . . . 1 . 1 . 1 1 . . . . . . . . . 1 . . . 1 Scanalyzer Index 1 | . . . . . . . . . . . . . . . . . . . . . 1 . . . . Garrison Index 1 | . . . . . . . . . . . . . . . . . . . . . 1 . . . . Alert Level 4 | . . . . . . . . . . . 1 . . . 1 . . . . . 1 . . 1 . Unreport Threat 6 | . . . . . . . . . . . 1 . . . 1 . . . . . 3 . . . 1 Locate Traps 7 | . . . 1 . . . . 1 . . 1 . . . . . . . . . 4 . . . . Disarm Traps 1 | . . . . . . . . . . . 1 . . . . . . . . . . . . . . Registered Components 1 | . . . . . . 1 . . . . . . . . . . . . . . . . . . . Zone Layout 11 | . 1 . . 1 . . . 1 . . . . . . . . . . . . 5 . . 2 1 Garrison Registry 1 | . . . . . 1 . . . . . . . . . . . . . . . . . . . . Security Stations 1 | . . . . . 1 . . . . . . . . . . . . . . . . . . . . Proto ID Catalog 1 | . . . . . . . . . . . . . . . . . . . . . . . . . 1 Fabricator Hacks 20 | . . . . . . . . 9 . 9 . . . . . . . . . . 1 . 1 . . Network Status 4 | . . . . . . . . 1 . 1 . . . . . . . . . . 1 . 1 . . Load Schematic 9 | . . . . . . . . 5 . 4 . . . . . . . . . . . . . . . Build 7 | . . . . . . . . 3 . 4 . . . . . . . . . . . . . . . Repair Station Hacks 15 | . 4 . 1 . . . . 2 . . . . . . 3 . . . . 3 . . . 2 . Scan Component 9 | . 2 . 1 . . . . 1 . . . . . . 2 . . . . 2 . . . 1 . Repair 6 | . 2 . . . . . . 1 . . . . . . 1 . . . . 1 . . . 1 . Recycling Unit Hacks 5 | . . . . . . . . . . 1 . . . . 1 . . . . . . . 3 . . Process 1 | . . . . . . . . . . . . . . . . . . . . . . . 1 . . Retrieve Matter 2 | . . . . . . . . . . . . . . . . . . . . . . . 2 . . Retrieve Components 2 | . . . . . . . . . . 1 . . . . 1 . . . . . . . . . . Scanalyzer 13 | . . . 3 . . . . 10 . . . . . . . . . . . . . . . . . Insert Component 5 | . . . 2 . . . . 3 . . . . . . . . . . . . . . . . . Analyze 4 | . . . 1 . . . . 3 . . . . . . . . . . . . . . . . . Retrieve Study 4 | . . . . . . . . 4 . . . . . . . . . . . . . . . . . Garrison Access Hacks 4 | . . . . 1 . . . . . . . . . 1 . . . . . . . . . 1 1 Unlock Access 1 | . . . . 1 . . . . . . . . . . . . . . . . . . . . . Seal Access 3 | . . . . . . . . . . . . . . 1 . . . . . . . . . 1 1 Unauthorized Hacks 68 | . 7 . 7 6 . 11 . 5 . 5 2 . . 2 3 . . . . . 9 . 2 2 7 Terminals 51 | . 7 . 6 6 . 7 . 1 . . 2 . . 2 3 . . . . . 6 . 2 2 7 Track 3 | . . . . . . . . . . . . . . . . . . . . . 2 . . . 1 Assimilate 4 | . . . . . . . . . . . 1 . . . 1 . . . . . 1 . . . 1 Botnet 16 | . 1 . 1 1 . 3 . 1 . . 1 . . . 1 . . . . . 1 . 1 1 4 Disrupt 1 | . . . . . . . . . . . . . . . . . . . . . 1 . . . . Operators 7 | . 1 . 1 . . . . . . . . . . . 1 . . . . . 1 . 1 1 1 Skim 18 | . 5 . 4 5 . 4 . . . . . . . . . . . . . . . . . . . Sabotage 2 | . . . . . . . . . . . . . . 2 . . . . . . . . . . . Fabricators 8 | . . . . . . . . 4 . 2 . . . . . . . . . . 2 . . . . Prioritize 3 | . . . . . . . . 1 . 2 . . . . . . . . . . . . . . . Liberate 2 | . . . . . . . . 1 . . . . . . . . . . . . 1 . . . . Fabnet 1 | . . . . . . . . . . . . . . . . . . . . . 1 . . . . Recompile 2 | . . . . . . . . 2 . . . . . . . . . . . . . . . . . Repair Stations 1 | . . . . . . . . . . . . . . . . . . . . . 1 . . . . Patch 1 | . . . . . . . . . . . . . . . . . . . . . 1 . . . . Recycling Units 8 | . . . 1 . . 4 . . . 3 . . . . . . . . . . . . . . . Reject 1 | . . . . . . . . . . 1 . . . . . . . . . . . . . . . Recyclers 1 | . . . . . . . . . . 1 . . . . . . . . . . . . . . . Mask 1 | . . . . . . . . . . 1 . . . . . . . . . . . . . . . Tunnel 5 | . . . 1 . . 4 . . . . . . . . . . . . . . . . . . . Scanalyzers . | . . . . . . . . . . . . . . . . . . . . . . . . . . Garrison Access . | . . . . . . . . . . . . . . . . . . . . . . . . . . Data Cores Recovered 3 | . . . 1 . . . . . . . 1 . . . . . . . . . . . . 1 . Used . | . . . . . . . . . . . . . . . . . . . . . . . . . . Hacking Detections 90 | . 6 . 8 9 2 6 . 10 . 9 10 . . 3 5 . . . . 2 8 . 2 3 7 Full Trace Events 6 | . . . . . 1 2 . 1 . 1 . . . 1 . . . . . . . . . . . Feedback Events . | . . . . . . . . . . . . . . . . . . . . . . . . . . Feedback Blocked . | . . . . . . . . . . . . . . . . . . . . . . . . . . Robot Schematics Acquired 1 | . 1 . . . . . . . . . . . . . . . . . . . . . . . . Robots Built . | . . . . . . . . . . . . . . . . . . . . . . . . . . Authchips . | . . . . . . . . . . . . . . . . . . . . . . . . . . Time . | . . . . . . . . . . . . . . . . . . . . . . . . . . Total Robot Build Rating . | . . . . . . . . . . . . . . . . . . . . . . . . . . Part Schematics Acquired 14 | . 1 . 1 . . 2 . 5 . 3 1 . . . . . . . . . 1 . . . . Parts Built 8 | . . . . . . . . 3 . 5 . . . . . . . . . . . . . . . Authchips 5 | . . . . . . . . 2 . 3 . . . . . . . . . . . . . . . Time 505 | . . . . . . . . 234 . 271 . . . . . . . . . . . . . . . Total Part Build Rating 38 | . . . . . . . . 14 . 24 . . . . . . . . . . . . . . . Part Studies Acquired 4 | . . . . . . . . 4 . . . . . . . . . . . . . . . . . Parts Repaired 6 | . 2 . . . . . . 1 . . . . . . 1 . . . . 1 . . . 1 . Time 257 | . 64 . . . . . . 49 . . . . . . 56 . . . . 44 . . . 44 . Parts Recycled . | . . . . . . . . . . . . . . . . . . . . . . . . . . Recycled Matter 16 | . . . . . . . . . . . . . . . . . . . . . . . 16 . . Retrieved Matter 16 | . . . . . . . . . . . . . . . . . . . . . . . 16 . . Retrieved Components 4 | . . . . . . . . . . 1 . . . . 3 . . . . . . . . . . Parts Scanalyzed 4 | . . . 1 . . . . 3 . . . . . . . . . . . . . . . . . Part Schematics Acquired 4 | . . . 1 . . . . 3 . . . . . . . . . . . . . . . . . Parts Damaged . | . . . . . . . . . . . . . . . . . . . . . . . . . . Bothacking | -11 -10 -10 -9 -9 -9 -9 -9 -6 -6 -6 -6 -6 -6 -6 -5 -5 -5 -5 -4 -4 -4 -4 -3 -3 -3 ------------ Run | Yrd Mat Min Mat Sto Gar Rec Scr Fac Was Fac Ext Cet Arc Hub Fac Upp Upp War Pro Fac Arm Lab Res Qua Frg Used RIF Installer . | . . . . . . . . . . . . . . . . . . . . . . . . . . Robots Hacked 3 | . . . . . . . . 1 . . . . . . . . . . . . . . 1 . 1 Non-combat 1 | . . . . . . . . 1 . . . . . . . . . . . . . . . . . Combat 2 | . . . . . . . . . . . . . . . . . . . . . . . 1 . 1 Robot Hacks Applied 1 | . . . . . . . . 1 . . . . . . . . . . . . . . . . . find_chute 1 | . . . . . . . . 1 . . . . . . . . . . . . . . . . . Relay Couplers Released 25 | . . . . . 25 . . . . . . . . . . . . . . . . . . . . Machine Destruction 25 | . . . . . 25 . . . . . . . . . . . . . . . . . . . . Fabnet Peak Effective % 3 | . . . . . . . . . . . . . . . . . . . . . . . 3 3 3 Autooverrided 2 | . . . . . . . . . . . . . . . . . . . . . . . 1 . 1 Robots Rewired 26 | . . . . . . 5 . . . . 16 . . . . . . 5 . . . . . . . Allies Hacked 1 | . . . . . . . . 1 . . . . . . . . . . . . . . . . . Hacks Repelled 1 | . . . . . . . . . . . . . . . . . . 1 . . . . . . . Allies | -11 -10 -10 -9 -9 -9 -9 -9 -6 -6 -6 -6 -6 -6 -6 -5 -5 -5 -5 -4 -4 -4 -4 -3 -3 -3 -------- Run | Yrd Mat Min Mat Sto Gar Rec Scr Fac Was Fac Ext Cet Arc Hub Fac Upp Upp War Pro Fac Arm Lab Res Qua Frg Total Allies 61 | . . . . . 1 5 . 3 . . 27 5 . . 1 . . 5 . . 11 . 1 . 2 Largest Group 26 | . . . . . 1 5 5 5 . . 26 26 17 15 1 . . 5 4 . 10 . . . 1 Highest-Rated Group 876 | . . . . . 39 47 47 87 . . 876 876 802 693 26 . . 282 214 . 481 . . . 26 Highest-Rated Ally 159 | . . . . . 39 15 15 29 . . 159 152 96 96 26 . . 68 68 . 58 . . . 26 Initial Warlord ECA Mod 9 | . . . . . . 9 9 6 6 6 6 6 6 6 5 5 5 5 4 4 4 4 3 3 3 Total Orders 40 | . . . . . . . . . . . . 11 25 . . . . 4 . . . . . . . STAY 21 | . . . . . . . . . . . . 6 13 . . . . 2 . . . . . . . FOLLOW 19 | . . . . . . . . . . . . 5 12 . . . . 2 . . . . . . . Ally Attacks 453 | . . . . . 16 . . 30 . . 94 99 17 68 . . . 4 25 . 99 . 1 . . Total Damage 11165 | . . . . . 224 . . 496 . . 2486 2126 476 1570 . . . 218 854 . 2715 . . . . Kills 71 | . . . . . 5 . . 3 . . 17 11 2 11 . . . . 5 . 17 . . . . Allies Corrupted 2 | . . . . . . . . . . . . . . 1 . . . . . . 1 . . . . Allies Melted . | . . . . . . . . . . . . . . . . . . . . . . . . . . Intel | -11 -10 -10 -9 -9 -9 -9 -9 -6 -6 -6 -6 -6 -6 -6 -5 -5 -5 -5 -4 -4 -4 -4 -3 -3 -3 ------- Run | Yrd Mat Min Mat Sto Gar Rec Scr Fac Was Fac Ext Cet Arc Hub Fac Upp Upp War Pro Fac Arm Lab Res Qua Frg Active Infowar (turns) 12388 | 2 2289 723 1451 . . . . 1255 29 397 668 534 344 238 195 321 135 716 239 131 640 75 453 391 1162 Optics 1593 | . . . . . . . . . . . . . . . . . . . . . . . 40 391 1162 Sensors 6827 | . . . . . . . . 323 29 397 668 534 344 238 195 321 135 714 239 129 639 75 451 391 1005 IFF 932 | . . . . . . . . 932 . . . . . . . . . . . . . . . . . Seismic 4465 | 2 2289 723 1451 . . . . . . . . . . . . . . . . . . . . . . Cloaking 125 | . . . . . . . . . . . . . . . . . . 2 . 3 5 . . 30 85 Jamming 699 | . . . . . . . . . . . . . . . . . . . . . . . . . 699 Robot Analysis Total 2 | . 2 . . . . . . . . . . . . . . . . . . . . . . . . Derelict Logs Recovered 7 | . . 1 . . . . . . . . . . . . . 3 3 . . . . . . . . Drone Launches . | . . . . . . . . . . . . . . . . . . . . . . . . . . Drone Recoveries . | . . . . . . . . . . . . . . . . . . . . . . . . . . Exploration | -11 -10 -10 -9 -9 -9 -9 -9 -6 -6 -6 -6 -6 -6 -6 -5 -5 -5 -5 -4 -4 -4 -4 -3 -3 -3 ------------- Run | Yrd Mat Min Mat Sto Gar Rec Scr Fac Was Fac Ext Cet Arc Hub Fac Upp Upp War Pro Fac Arm Lab Res Qua Frg Turns Passed 19933 | 103 2317 1519 1895 1572 1033 1056 1439 1785 92 405 705 544 347 238 198 321 137 1121 239 136 642 79 457 391 1162 Spaces Moved 19369 | 48 935 478 801 745 493 558 846 1850 281 1057 913 511 214 549 557 860 513 1546 431 309 1211 133 1300 698 1532 Core 24 | 19 . . . . . . . . . . . . . . . . . . . . . . . . 5 Treads 4353 | . . 262 801 745 493 558 846 648 . . . . . . . . . . . . . . . . . Legs 1180 | 29 935 216 . . . . . . . . . . . . . . . . . . . . . . . Wheels . | . . . . . . . . . . . . . . . . . . . . . . . . . . Hover 65 | . . . . . . . . . . . . . . . . . . . . . . . . . 65 Flight 13747 | . . . . . . . . 1202 281 1057 913 511 214 549 557 860 513 1546 431 309 1211 133 1300 698 1462 Fastest Speed 6 | 50 120 240 160 170 170 170 170 21 21 20 25 25 25 27 25 15 25 20 20 6 6 20 7 7 7 Average Speed 69 | 96 216 249 164 177 170 170 170 73 21 21 25 25 25 28 25 24 25 23 20 19 19 20 20 18 24 Slowest Speed 600 | 190 260 260 170 250 250 170 170 170 21 25 96 27 96 30 25 25 25 25 20 20 20 20 88 19 600 Overloaded Moves 293 | . . . . . . . . . . . . . . . . 2 . . . 17 17 . 4 47 206 Propulsion Burnouts . | . . . . . . . . . . . . . . . . . . . . . . . . . . Robots Hopped 71 | . . . . . . . . 15 2 3 10 . . 2 . . . 1 1 2 7 . 9 18 1 Potential Cave-ins . | . . . . . . . . . . . . . . . . . . . . . . . . . . Cave-ins Triggered . | . . . . . . . . . . . . . . . . . . . . . . . . . . Teleports 1 | . . . . . . . . . . . . . . . . . . . . . . . . . 1 Exploration Rate (%) 61 | 4 93 96 68 91 74 98 55 44 90 28 81 56 73 44 17 90 72 90 56 12 62 86 21 77 31 Regions Visited 25 Branch Regions 16 Pre-discovered Areas 14 | . 1 1 1 4 . 4 . . . . . . . . . 2 1 . . . . . . . . Known Exits Taken 19 | . 1 1 1 1 . . . . . 1 1 1 1 1 1 1 1 1 1 1 1 1 1 1 . Unknown Exits Taken 3 | 1 . . . . . 1 1 . . . . . . . . . . . . . . . . . . Scrap Searched 15 | . . 1 . . . . 3 . . . . . . . . 4 2 . 5 . . . . . . Spaces Dug 94 | . . . . . . . . 4 . 8 19 . . 8 . . 2 3 9 . 6 . 13 13 9 Terrain Destroyed 664 | . 13 6 7 . 83 . . 53 . 21 32 . 2 322 1 4 2 24 37 . 14 . 14 14 15 Melee 65 | . . . . . . . . 3 . 8 17 . . . . . . . . . 2 . 13 13 9 Projectile 95 | . . . . . . . . 2 . . 15 . 2 10 1 4 2 24 15 . 12 . 1 1 6 AOE 504 | . 13 6 7 . 83 . . 48 . 13 . . . 312 . . . . 22 . . . . . . Terrain Rammed . | . . . . . . . . . . . . . . . . . . . . . . . . . . Walls Destroyed . | . . . . . . . . . . . . . . . . . . . . . . . . . . Machines Disabled . | . . . . . . . . . . . . . . . . . . . . . . . . . . Actions | -11 -10 -10 -9 -9 -9 -9 -9 -6 -6 -6 -6 -6 -6 -6 -5 -5 -5 -5 -4 -4 -4 -4 -3 -3 -3 --------- Run | Yrd Mat Min Mat Sto Gar Rec Scr Fac Was Fac Ext Cet Arc Hub Fac Upp Upp War Pro Fac Arm Lab Res Qua Frg Total 24573 | 80 1143 697 1165 914 591 633 847 2129 311 1202 1283 918 469 613 608 959 518 2247 569 380 1550 180 1436 900 2231 Wait 3487 | . 109 139 204 69 26 18 . 121 33 107 233 375 199 53 31 92 . 559 119 45 254 13 94 185 409 Move 19214 | 48 934 477 800 745 492 557 845 1822 276 1050 894 510 213 544 556 859 512 1543 428 304 1198 132 1280 665 1530 Hop 61 | . . . . . . . . 13 2 3 8 . . 2 . . . 1 1 2 5 . 9 14 1 Pick Up 141 | 5 25 8 12 10 . . 2 12 . 3 2 6 2 . 3 . . 4 2 2 5 8 2 2 26 Fast Attach 108 | 6 4 1 1 9 1 . . 21 . 7 3 6 4 . 4 . 2 7 1 1 5 7 7 2 9 Attach 106 | . 2 7 7 1 2 . . 19 . 4 4 3 . . 2 1 1 3 1 2 . 2 1 3 41 Detach 41 | . 1 . . . . . . 3 . 3 2 1 . . 1 . . 1 1 . 2 1 . . 25 Swap 69 | . 8 4 8 5 2 1 . 3 . 5 8 4 2 . 2 . 1 . 1 4 3 . 3 2 3 Drop 186 | . 14 3 14 19 1 . . 30 . 7 5 11 6 . 4 1 1 8 2 . 11 12 7 4 26 Fire 772 | 21 44 52 116 54 67 17 . 80 . 3 32 . 43 14 4 6 1 60 13 . 63 . 8 2 72 Melee 123 | . . . . . . . . 5 . 10 30 2 . . 1 . . 1 . . 2 5 24 21 22 Ram . | . . . . . . . . . . . . . . . . . . . . . . . . . . Kick 6 | . 2 4 . . . . . . . . . . . . . . . . . . . . . . . Crush 13 | . . 2 3 2 . 6 . . . . . . . . . . . . . . . . . . . Escape Stasis 99 | . . . . . . . . . . . 11 . . . . . . . . 20 . . 1 . 67 Rewire 147 | . . . . . . 34 . . . . 51 . . . . . . 60 . . 2 . . . . Trap . | . . . . . . . . . . . . . . . . . . . . . . . . . . Miscellaneous . | . . . . . . . . . . . . . . . . . . . . . . . . . . Route ------- -11/Scrapyard -10/Materials (discovered 5 exits: *Mat x3 / *Min x2) -10/Mines (discovered 3 exits: *Mat x2 / [*Exi]) -9/Materials (discovered 6 exits: *Mat x3 / Min / *Sto x2) -9/Storage (discovered 3 exits: *Mat / Rec / Gar) -9/Garrison (discovered 3 exits: *Rec x3) -9/Recycling (discovered 2 exits: [*Fac] / [*Scr]) -9/Scraptown -6/Factory (discovered 5 exits: *Fac / Low x2 / Ext x2) -6/Waste -6/Factory (discovered 4 exits: *Low x2 / *Ext x2) -6/Extension (discovered 2 exits: *Fac / *Cet) -6/Cetus (discovered 2 exits: *Fac / *Arc) -6/Archives -6/Hub_04(d) (discovered 3 exits: *Fac x3) -5/Factory (discovered 2 exits: *Upp x2) -5/Upper Caves -5/Upper Caves (discovered 2 exits: *Fac / *War) -5/Warlord -4/Proximity Caves -4/Factory (discovered 5 exits: Res x3 / Upp / *Arm) -4/Armory (discovered 2 exits: Res / *Lab) -4/Lab -3/Research -3/Quarantine (discovered 3 exits: [*Res] / [*Sec] / *Frg) -3/Protoforge History --------- Turn | Location | Event 19 | -11/Scrapyard | Discovered new exit (range 15) 104 | -11/Scrapyard | Entered Materials 162 | -10/Materials | Discovered new exit (range 16) 314 | -10/Materials | Build established: Mutant 461 | -10/Materials | Discovered new exit (range 5) 698 | -10/Materials | Repaired EM Shotgun 731 | -10/Materials | Repaired EM Shotgun 894 | -10/Materials | Discovered new exit (range 5) 1204 | -10/Materials | Derelicts attacked the area 1247 | -10/Materials | Discovered new exit (range 4) 1932 | -10/Materials | Discovered new exit (range 16) 2042 | -10/Materials | Learned location of Subcaves (-10) 2113 | -10/Materials | Identified exit to Mines 2113 | -10/Materials | Identified exit to Materials 2175 | -10/Materials | Learned 4 Subcaves zone layouts 2293 | -10/Materials | Learned Storage stockpile data 2330 | -10/Materials | Learned 4 Materials zone layouts 2421 | -10/Materials | Entered Mines 2626 | -10/Mines | Deemed a non-threat by the Exiles lab entrance 2626 | -10/Mines | Discovered new exit (range 5) 3005 | -10/Mines | Excavation squad dispatched 3005 | -10/Mines | A large section of the Mines collapsed 3239 | -10/Mines | Core integrity fell below 50% 3287 | -10/Mines | Lost 6 parts (1p2n1u2w) 3551 | -10/Mines | Learned location of Storage (-9) 3832 | -10/Mines | Core integrity fell below 20% 3940 | -10/Mines | Entered Materials 3940 | -9/Materials | Evolved 2 slots: Propulsion x1, Utility x1 3941 | -9/Materials | Identified exit to Materials 4229 | -9/Materials | Build established: Scavenger-Mutant 4792 | -9/Materials | Discovered new exit (range 7) 4806 | -9/Materials | Destroyed 7 combat bots 5087 | -9/Materials | Build established: Mutant 5638 | -9/Materials | Identified exit to Mines 5638 | -9/Materials | Identified exit to Storage 5835 | -9/Materials | Entered Storage 5997 | -9/Storage | Learned location of Armory (-4) 6284 | -9/Storage | Met 01-MTF 6554 | -9/Storage | Discovered exit to Materials (range 16) 6811 | -9/Storage | Learned location of Recycling (-9) 6872 | -9/Storage | Identified exit to Recycling 6886 | -9/Storage | Learned Materials garrison access intel 6888 | -9/Storage | Loaded intel: 7 trap records 6907 | -9/Storage | Garrison activated, responded to threat 7218 | -9/Storage | Murdered 01-MTF 7227 | -9/Storage | Found Prototype Device 7227 | -9/Storage | Identified 01-MTF's Autohacker 7407 | -9/Storage | Identified exit to Garrison 7407 | -9/Storage | Entered Garrison 7468 | -9/Garrison | Rescued a captive Derelict 7475 | -9/Garrison | Triggered checkpoint 7537 | -9/Garrison | Garrison Relay disabled 7612 | -9/Garrison | Triggered checkpoint 7619 | -9/Garrison | Triggered checkpoint 7739 | -9/Garrison | Triggered checkpoint 7745 | -9/Garrison | Learned Recycling security intel 7775 | -9/Garrison | Garrison Relay disabled 7809 | -9/Garrison | Discovered exit to Recycling (range 12) 7933 | -9/Garrison | Spotted B-75 Beast 7984 | -9/Garrison | Discovered exit to Recycling (range 36) 7984 | -9/Garrison | Discovered exit to Recycling (range 59) 7984 | -9/Garrison | Discovered exit to Recycling (range 24) 8021 | -9/Garrison | Garrison Relay disabled 8088 | -9/Garrison | Garrison Relay disabled 8127 | -9/Garrison | Triggered checkpoint 8184 | -9/Garrison | Phase Generator disabled 8317 | -9/Garrison | Garrison Relay disabled 8355 | -9/Garrison | Triggered checkpoint 8388 | -9/Garrison | Garrison Relay disabled 8440 | -9/Garrison | Entered Recycling 8441 | -9/Recycling | Met a Zionite searching for Scraptown 8441 | -9/Recycling | Joined Warlord attack on 0b10 via Recycling 8709 | -9/Recycling | Discovered new exit (range 8) 9228 | -9/Recycling | Core integrity fell below 50% 9445 | -9/Recycling | Scanned before Scraplab entrance 9471 | -9/Recycling | Entered Scraplab 9484 | -9/Recycling | Discovered new exit (range 4) 9496 | -9/Recycling | Entered Scraptown 9496 | -9/Scraptown | Accompanied by 5 allies 9496 | -9/Scraptown | System corruption cleaned by C-Scrubber 9653 | -9/Scraptown | Build established: Commander-Mutant 9668 | -9/Scraptown | Visited UFD Registry 9699 | -9/Scraptown | Visited SPCMW 9757 | -9/Scraptown | Visited Symbiants 9794 | -9/Scraptown | Visited TADAMA 9835 | -9/Scraptown | Visited Cyclists 9850 | -9/Scraptown | Visited Fellowship of the Rings 9870 | -9/Scraptown | Visited Red Mages 10253 | -9/Scraptown | Discovered new exit (range 13) 10935 | -9/Scraptown | Entered Factory 10935 | -6/Factory | Accompanied by 5 allies 10935 | -6/Factory | Evolved 6 slots: Propulsion x3, Utility x3 11045 | -6/Factory | Lost 4 allies 11347 | -6/Factory | Build established: Scavenger-Mutant 11907 | -6/Factory | Discovered new exit (range 8) 12266 | -6/Factory | Identified exit to Lower Caves 12266 | -6/Factory | Identified exit to Extension 12431 | -6/Factory | Fabricated Cld. VTOL Module? 12441 | -6/Factory | Fabricated Cld. VTOL Module? 12498 | -6/Factory | Fabricated Tri-rail Accelerator? 12530 | -6/Factory | Build established: Hacker-Sprinter 12631 | -6/Factory | Repaired Mni. Fusion Reactor 12716 | -6/Factory | Central database locked down 12720 | -6/Factory | Manually triggered Chute Trap 12720 | -6/Factory | Sucked down chute 12720 | -6/Factory | Entered Waste 12720 | -6/Waste | The area was eerily silent 12787 | -6/Waste | Discovered new exit (range 16) 12812 | -6/Waste | Identified exit to Factory 12812 | -6/Waste | Entered Factory 12919 | -6/Factory | Fabricated Cld. VTOL Module? 13013 | -6/Factory | Spotted B-75 Beast 13066 | -6/Factory | Discovered exit to Lower Caves (range 7) 13092 | -6/Factory | Fabricated Cld. VTOL Module (x1) 13101 | -6/Factory | Fabricated Nuclear Pulse Array (x1) 13111 | -6/Factory | Fabricated Weapon Mount? 13217 | -6/Factory | Entered Extension 13253 | -6/Extension | Rescued a captive Derelict 13254 | -6/Extension | Rescued a captive Derelict 13263 | -6/Extension | Rescued A7 13289 | -6/Extension | Attached CPS modules to A7. 13296 | -6/Extension | Rescued a captive Derelict 13296 | -6/Extension | Rescued a captive Derelict 13344 | -6/Extension | Rescued a captive Derelict 13439 | -6/Extension | Spotted B-75 Beast 13573 | -6/Extension | Allies destroyed B-75 Beast 13579 | -6/Extension | Spotted B-75 Beast 13593 | -6/Extension | Destroyed B-75 Beast 13769 | -6/Extension | Rescued a captive Derelict 13805 | -6/Extension | Rescued a captive Derelict 13806 | -6/Extension | Rescued a captive Derelict 13809 | -6/Extension | Rescued a captive Derelict 13813 | -6/Extension | Discovered new exit (range 10) 13813 | -6/Extension | Discovered new exit (range 6) 13815 | -6/Extension | Identified exit to Cetus 13873 | -6/Extension | Identified exit to Factory 13922 | -6/Extension | Entered Cetus 13922 | -6/Cetus | Accompanied by 26 allies (A7) 13927 | -6/Cetus | Acquired a Cetus Manufacturing Module code from A7 13937 | -6/Cetus | Spotted Cetus Guard 13937 | -6/Cetus | Spotted Cetus Guard 13948 | -6/Cetus | Spotted Cetus Guard 13952 | -6/Cetus | Spotted Cetus Guard 13958 | -6/Cetus | Allies destroyed Cetus Guard 13963 | -6/Cetus | Allies destroyed Cetus Guard 13967 | -6/Cetus | Allies destroyed Cetus Guard 13995 | -6/Cetus | Lost 7 allies 14055 | -6/Cetus | Build established: Commander-Sprinter 14058 | -6/Cetus | Discovered new exit (range 16) 14086 | -6/Cetus | Spotted Cetus Guard 14086 | -6/Cetus | Spotted Cetus Guard 14101 | -6/Cetus | Spotted Cetus Guard 14107 | -6/Cetus | Spotted Cetus Guard 14118 | -6/Cetus | Allies destroyed Cetus Guard 14121 | -6/Cetus | Allies destroyed Cetus Guard 14124 | -6/Cetus | Discovered exit to Factory (range 16) 14127 | -6/Cetus | Met Revision 17 14137 | -6/Cetus | Started Cetus Manufacturing Module 14143 | -6/Cetus | Lost 5 allies 14146 | -6/Cetus | Murdered A7 14149 | -6/Cetus | Extracted ID and sensor layout for unrecognized location from A7's data core 14160 | -6/Cetus | Identified exit to Archives 14162 | -6/Cetus | Manufactured an Enhanced Grunt 14187 | -6/Cetus | Manufactured an Enhanced Grunt 14212 | -6/Cetus | Manufactured an Enhanced Grunt 14214 | -6/Cetus | Found Prototype Protection 14214 | -6/Cetus | Identified Med. Regenerative Plating 14237 | -6/Cetus | Manufactured an Enhanced Grunt 14262 | -6/Cetus | Manufactured an Enhanced Grunt 14466 | -6/Cetus | Entered Archives 14466 | -6/Archives | Accompanied by 18 allies 14496 | -6/Archives | Found Prototype Device 14496 | -6/Archives | Identified Exp. Thermal Shield 14502 | -6/Archives | Discovered new exit (range 13) 14505 | -6/Archives | Identified exit to Hub_04(d) 14522 | -6/Archives | Lost 3 allies 14813 | -6/Archives | Entered Hub_04(d) 14813 | -6/Hub_04(d) | Accompanied by 15 allies 14885 | -6/Hub_04(d) | Discovered exit to Factory (range 8) 14958 | -6/Hub_04(d) | Discovered exit to Factory (range 5) 15020 | -6/Hub_04(d) | Lost 5 allies 15025 | -6/Hub_04(d) | Discovered exit to Factory (range 4) 15039 | -6/Hub_04(d) | Garrison activated, responded to threat 15043 | -6/Hub_04(d) | Network Hub disabled 15043 | -6/Hub_04(d) | Network Hub disabled 15044 | -6/Hub_04(d) | Spotted Lightning 15045 | -6/Hub_04(d) | Spotted Lightning 15051 | -6/Hub_04(d) | Entered Factory 15051 | -5/Factory | Evolved 2 slots: Power x1, Utility x1 15078 | -5/Factory | Lost 3 allies 15112 | -5/Factory | Identified exit to Upper Caves 15196 | -5/Factory | Repaired Broken Tri-rail Accelerator? 15249 | -5/Factory | Entered Upper Caves 15256 | -5/Upper Caves | Encountered a Warlord checkpoint 15265 | -5/Upper Caves | Learned location of 1 exit from Factory 15285 | -5/Upper Caves | Attracted the attention of an 0b10 checkpoint 15352 | -5/Upper Caves | Met a Warlord Commander 15353 | -5/Upper Caves | Learned location of Warlord (-5) 15354 | -5/Upper Caves | Warlord Commander delivered Encrypted Comm Array 15533 | -5/Upper Caves | Discovered new exit (range 13) 15537 | -5/Upper Caves | Learned 12 Factory zone layouts 15546 | -5/Upper Caves | Identified exit to Upper Caves 15560 | -5/Upper Caves | Build established: Machinist-Sprinter 15570 | -5/Upper Caves | Entered another Upper Caves area 15595 | -5/Upper Caves | Discovered new exit (range 7) 15616 | -5/Upper Caves | Found Alien Artifact 15616 | -5/Upper Caves | Identified Core Expander 15616 | -5/Upper Caves | Installed Core Expander, added new Propulsion slot 15695 | -5/Upper Caves | Discovered new exit (range 16) 15698 | -5/Upper Caves | Learned 8 Factory zone layouts 15702 | -5/Upper Caves | Learned Factory emergency access door positions 15706 | -5/Upper Caves | Identified exit to Warlord 15707 | -5/Upper Caves | Entered Warlord 15970 | -5/Warlord | Warlord's base attacked by MAIN.C 16016 | -5/Warlord | Found Prototype Piercing Weapon 16016 | -5/Warlord | Identified Vortex Lance 16039 | -5/Warlord | Found Prototype Device 16039 | -5/Warlord | Identified Exp. Cloaking Device 16042 | -5/Warlord | Found Prototype Device 16042 | -5/Warlord | Identified System Purifier 16069 | -5/Warlord | Met Warlord 16118 | -5/Warlord | Spotted B-86 Titan 16151 | -5/Warlord | Spotted B-75 Beast 16157 | -5/Warlord | Destroyed B-75 Beast 16182 | -5/Warlord | Warlord forces counterattacked 16185 | -5/Warlord | Lost 3 allies 16251 | -5/Warlord | Lost 3 allies 16289 | -5/Warlord | Spotted Executioner 16332 | -5/Warlord | Lost 9 allies 16388 | -5/Warlord | Spotted Striker 16401 | -5/Warlord | Spotted Executioner 16421 | -5/Warlord | Destroyed Executioner 16426 | -5/Warlord | Discovered new exit (range 15) 16430 | -5/Warlord | Found Prototype Processor 16430 | -5/Warlord | Identified Exp. Targeting Computer 16452 | -5/Warlord | Lost 16 allies 16645 | -5/Warlord | Warlord base infiltrated, sounded retreat 16706 | -5/Warlord | Spotted Striker 16706 | -5/Warlord | Destroyed Striker 16788 | -5/Warlord | Spotted Executioner 16800 | -5/Warlord | Identified exit to Proximity Caves 16826 | -5/Warlord | Lost 18 allies 16828 | -5/Warlord | Entered Proximity Caves 16828 | -4/Proximity Caves | Accompanied by 4 allies 16975 | -4/Proximity Caves | Attracted the attention of an 0b10 checkpoint 17055 | -4/Proximity Caves | Discovered new exit (range 13) 17060 | -4/Proximity Caves | Identified exit to Factory 17067 | -4/Proximity Caves | Entered Factory 17067 | -4/Factory | Evolved 2 slots: Utility x2 17068 | -4/Factory | Identified exit to Research 17069 | -4/Factory | Identified exit to Upper Caves 17145 | -4/Factory | Build established: Scavenger-Sprinter 17170 | -4/Factory | Repaired Tri-rail Accelerator? 17202 | -4/Factory | Discovered new exit (range 11) 17203 | -4/Factory | Identified exit to Armory 17203 | -4/Factory | Entered Armory 17285 | -4/Armory | Spotted B-86 Titan 17393 | -4/Armory | Assisted by bots powering up and referring to "LRC-V3" 17492 | -4/Armory | Lost 10 allies 17764 | -4/Armory | Found Fusion Bomb Launcher 17776 | -4/Armory | Discovered exit to Research (range 15) 17837 | -4/Armory | Discovered new exit (range 3) 17845 | -4/Armory | Identified exit to Lab 17845 | -4/Armory | Entered Lab 17850 | -4/Lab | Discovered exit to Research (range 9) 17852 | -4/Lab | Hidden lab's door opened automatically 17852 | -4/Lab | Sensor layout match revealed 17853 | -4/Lab | Gained access to the hidden lab's interior 17867 | -4/Lab | Found Alien Artifact 17876 | -4/Lab | Found Alien Artifact 17879 | -4/Lab | Found Alien Artifact 17879 | -4/Lab | Identified Integrated Dissipator 17879 | -4/Lab | Installed Integrated Dissipator, increased core heat dissipation (+20) 17888 | -4/Lab | Found Core Expander 17894 | -4/Lab | Found Prototype Hackware 17896 | -4/Lab | Found Prototype Energy Cannon 17896 | -4/Lab | Identified Warp Cannon 17916 | -4/Lab | Installed Core Expander, added new Utility slot 17924 | -4/Lab | Entered Research 17924 | -3/Research | Evolved 2 slots: Utility x1, Weapon x1 17944 | -3/Research | Discovered new exit (range 15) 18060 | -3/Research | Identified Deep Network Scanner 18094 | -3/Research | Identified exit to Quarantine 18124 | -3/Research | Revision forces began assault on 0b10 18127 | -3/Research | Found Prototype Processor 18127 | -3/Research | Identified Exp. Terrain Scan Processor 18169 | -3/Research | Met up with Revision 17++ 18172 | -3/Research | Local machine network offline 18340 | -3/Research | Identified Core Reset Matrix 18340 | -3/Research | Identified Transdimensional Reconstructor 18340 | -3/Research | Used Core Reset Matrix 18380 | -3/Research | Discovered exit to Quarantine (range 7) 18381 | -3/Research | Entered Quarantine 18382 | -3/Quarantine | Detected hypermatrix surge 18382 | -3/Quarantine | Sensed 6 artifacts in vicinity 18414 | -3/Quarantine | Found Sigix Broadsword 18450 | -3/Quarantine | Repaired Tri-rail Accelerator? 18562 | -3/Quarantine | Unchained authorized (6S-H0T) 18646 | -3/Quarantine | Cryocooling Duct disabled 18661 | -3/Quarantine | Ambient heat levels rising (+20) 18661 | -3/Quarantine | Non-combat units ordered to evacuate 18672 | -3/Quarantine | Discovered new exit (range 12) 18679 | -3/Quarantine | Found Subatomic Replicator 18699 | -3/Quarantine | Build established: Hacker-Ninja 18728 | -3/Quarantine | Spotted Fortress 18742 | -3/Quarantine | Discovered new exit (range 6) 18742 | -3/Quarantine | Discovered new exit (range 7) 18743 | -3/Quarantine | Identified exit to Protoforge 18772 | -3/Quarantine | Entered Protoforge 18773 | -3/Protoforge | Sensed 2 artifacts in vicinity 18791 | -3/Protoforge | Spotted Hotshot 18802 | -3/Protoforge | Spotted Hotshot 19031 | -3/Protoforge | Spotted AP7-3 19031 | -3/Protoforge | Spotted AP7-3 19166 | -3/Protoforge | Superfortress began startup sequence 19260 | -3/Protoforge | Found Prototype Device 19327 | -3/Protoforge | Spotted Immortal 19327 | -3/Protoforge | Spotted Immortal 19358 | -3/Protoforge | Destroyed Immortal 19381 | -3/Protoforge | Destroyed Immortal 19401 | -3/Protoforge | Found Exp. Cloaking Device 19409 | -3/Protoforge | Spotted Decapitator 19409 | -3/Protoforge | Spotted Decapitator 19409 | -3/Protoforge | Spotted Decapitator 19409 | -3/Protoforge | Spotted Decapitator 19452 | -3/Protoforge | Spotted Decapitator 19453 | -3/Protoforge | Spotted Decapitator 19453 | -3/Protoforge | Spotted Decapitator 19466 | -3/Protoforge | Found Cep. Rapid Grenade Launcher 19467 | -3/Protoforge | Identified Crosscalibrator 19468 | -3/Protoforge | Found Faulty Cep. Rapid Grenade Launcher 19520 | -3/Protoforge | Destroyed Decapitator 19520 | -3/Protoforge | Destroyed Decapitator 19522 | -3/Protoforge | Destroyed Decapitator 19522 | -3/Protoforge | Destroyed Decapitator 19556 | -3/Protoforge | Forge Plexus network access discovered 19613 | -3/Protoforge | Found Cep. Antigrav Storage Unit 19638 | -3/Protoforge | Found Cep. Weapon Articulator 19639 | -3/Protoforge | Found Faulty Mni. Quantum Capacitor 19651 | -3/Protoforge | Spotted V255-p 19651 | -3/Protoforge | Spotted V490-h 19651 | -3/Protoforge | Spotted V002-h 19651 | -3/Protoforge | Spotted V284-c 19652 | -3/Protoforge | Found Faulty Mni. Quantum Capacitor 19654 | -3/Protoforge | Found Cep. Weapon Articulator 19699 | -3/Protoforge | Warped through subspace 19721 | -3/Protoforge | Destroyed V255-p 19729 | -3/Protoforge | Destroyed V490-h 19734 | -3/Protoforge | Found Prototype Ballistic Gun 19734 | -3/Protoforge | Identified Cep. XC Strikerail 19760 | -3/Protoforge | Destroyed V002-h 19764 | -3/Protoforge | Found Cep. Gyrokinetic System 19767 | -3/Protoforge | Found Cep. Combat Aerolev Unit 19808 | -3/Protoforge | Spotted V177-j 19809 | -3/Protoforge | Spotted V088-t 19817 | -3/Protoforge | Found Cep. Gyrokinetic System 19825 | -3/Protoforge | Found Cep. Combat Aerolev Unit 19826 | -3/Protoforge | Found Cep. Combat Aerolev Unit 19828 | -3/Protoforge | Found Faulty Cep. Combat Aerolev Unit 19845 | -3/Protoforge | Spotted V789-y 19858 | -3/Protoforge | Local machine network offline 19863 | -3/Protoforge | System corruption reached 10% 19874 | -3/Protoforge | Destroyed V177-j 19880 | -3/Protoforge | Destroyed V789-y 19902 | -3/Protoforge | Lost 6 parts (2p1n3w) 19919 | -3/Protoforge | Core integrity fell below 50% 19929 | -3/Protoforge | Core integrity fell below 20% 19934 | -3/Protoforge | Destroyed by H-88 Terminator with KE Penetrator Last Messages --------------- 19915_ Slug penetrates Machine. 19918_ Cep. Gyrokinetic System destroyed. 19918_ Gravjet Array destroyed. 19918_ Slug penetrates Reinforced Barrier. 19918_ Penetrated by Slug. 19918_ Slug penetrates H-88 Terminator. 19920_ System corrupted: Component data lost. 19921_ Penetrated by Slug. 19924_ Slug penetrates Machine. 19924_ Penetrated by Slug. 19924_ Slug penetrates Reinforced Barrier. 19924_ Penetrated by Slug. 19928_ Forge Pylon damaged. 19928_ Slug penetrates Machine. 19928_ Penetrated by Slug. 19931_ Slug penetrates Reinforced Barrier. 19931_ Penetrated by Slug. 19931_ Cep. Combat Aerolev Unit destroyed. 19933_ Penetrated by Slug. 19933_ Exp. Cloaking Device destroyed. Map ----- +----------------------------------------------------+ | ???????????????????????????????????????????????? | | ???????????????????????????????????????????????? | | ???????????????????????????????????????????????? | | ???????????????????????????????????????????????? | | ???????????????????????????????????????????????? | | ???????????????????????????????????????????????? | | ???????????????????????????????????????????????? | | ???????????????????????????????????????????????? | | ???????????????????????????????????????????????? | | #??????????????????][[??[[]?/??????????????????? | | #??????????????????][/??[?]/???????????????????? | | #??????????????????????????????????????????????? | | #??????????????????????????????????????????????? | | #??????????????????????????????????????????????? | | #??????????????????????????????????????????????? | | #??????????????????????????????????????????????? | | #??????????????????????????????????????????????? | | #???????????????###############????????????????? | | #???????????????#"" """"" """"#????????????????? | | #???????????????#"=!== ======"#????????????????? | | #???????????????#"=!== = ="#????????????????? | | #???????????????##### p """"##????????????????? | | #?????????????????#"" #????????????????? | | #?????????????????# #????????????????? | | ###################h % #????????????????? | | h @ % #????????????????? | | c h h "#????????????????? | | #########++######## p " #????????????????? | | #?????#" # "#????????????????? | | #?????#" " ##????????????????? | | #?????#" " " " "?????????????????? | | #??????"""""""# " "?????????????????? | | #?????????##??# ####""""""##?????????????????? | | #?????????????####????======???????????????????? | | #?????????????????????======???????????????????? | | #??????????????????????????????????????????????? | | #??????????????????????????????????????????????? | | #??????????????????????????????????????????????? | | #??????????????????????????????????????????????? | | #??????????????????????????????????????????????? | | #??????????????????????????????????????????????? | | ###??????????????????????????????????????????????? | | ?????????????????????????????????????????????????? | | ?????????????????????????????????????????????????? | | ?????????????????????????????????????????????????? | | ?????????????????????????????????????????????????? | | ?????????????????????????????????????????????????? | | ?????????????????????????????????????????????????? | | ?????????????????????????????????????????????????? | | ?????????????????????????????????????????????????? | +----------------------------------------------------+ Best States ------------- Heat Dissipation 94 Energy Generation 35 Energy Capacity 280 Matter Stores 300 Matter Capacity 300 Sight Range 20 Robot Scan Range 16 Terrain Scan Density 10 Jamming Range 16 Cloak Strength 4 Additional Mass Support 16 Armor Coverage 525 Evasion (%) 77 Targeting Accuracy 42 Recoil Reduction 6 Offensive Hacking 52 Defensive Hacking 14 Authchip Count 3 Item Schematics ----------------- None Robot Schematics ------------------ None Fabricated ------------ Cld. VTOL Module | x1 | -6/Factory | Authchip Cld. VTOL Module | x1 | -6/Factory | Authchip Tri-rail Accelerator | x1 | -6/Factory Cld. VTOL Module | x1 | -6/Factory | Authchip Cld. VTOL Module | x1 | -6/Factory | Authchip Nuclear Pulse Array | x1 | -6/Factory | Preloaded Weapon Mount | x2 | -6/Factory | Authchip Repaired ---------- EM Shotgun | 18% | -10/Materials EM Shotgun | 44% | -10/Materials Mni. Fusion Reactor | 65% | -6/Factory Tri-rail Accelerator | 38% | -5/Factory | Broken Tri-rail Accelerator | 35% | -4/Factory Tri-rail Accelerator | 15% | -3/Quarantine Studied --------- None Alien Tech Used ----------------- Core Expander Integrated Dissipator Core Reset Matrix Sigix Broadsword Transdimensional Reconstructor Achievements -------------- Definitely A Prototype Hackathon Challenges ------------ None Game ------ Seed GrenadeLinearChargecaster Manual? 0 Play Time 04:31:22 Cumulative 382.5 hours Start 2025.11.17 @ 20:15:59 End 2025.11.18 @ 13:52:58 Sessions 3 Manual Loads 0 Difficulty Rogue Special Mode None Game No. 259 Rogue 259 Adventurer 0 Explorer 0 Win Type - Total 24 Types 9/0/8/1/1/0/2/1/1/1 Lore% 84 Gallery% 79 Achievement% 68 Wizard Run 0 Options --------- Layout 1 ASCII 0 Keyboard 0 Movement Mouse Keybinds 0 Fullscreen 2 Font 24/Smallcaps Map View 50x35 Zoom Use 0% Tactical HUD 1 Map Filters NONE Filters NONE Steam 1 RUN: 75fe69c8-86b0-4dad-9dbf-991263a9258b